[Event "Titled Tuesday Blitz September 27 Early 2022"]
[White "Pakleza, Zbigniew"]
[Black "Caruana, Fabiano"]
[WhiteFideId "1119290"]
[BlackFideId "2020009"]
[WhiteElo "2411"]
[BlackElo "2847"]
[Result "0-1"]
[Round "04"]
[TimeControl "180+1"]
[Date "2022.09.27"]
[WhiteClock "0:00:06"]
[BlackClock "0:00:07"]

1. d4 {[%clk 0:03:00]}  Nf6 {[%clk 0:02:58]} 2. Nf3 {[%clk 0:03:01]}  e6 {[%clk 0:02:58]} 3. Bf4 {[%clk 0:03:01]}  b6 {[%clk 0:02:57]} 4. e3 {[%clk 0:03:01]}  Bb7 {[%clk 0:02:58]} 5. h3 {[%clk 0:03:01]}  Nc6 {[%clk 0:02:56]} 6. Nbd2 {[%clk 0:02:58]}  Ne7 {[%clk 0:02:56]} 7. Bh2 {[%clk 0:02:55]}  Ng6 {[%clk 0:02:56]} 8. Bd3 {[%clk 0:02:50]}  Bd6 {[%clk 0:02:56]} 9. Bxd6 {[%clk 0:02:49]}  cxd6 {[%clk 0:02:57]} 10. O-O {[%clk 0:02:47]}  O-O {[%clk 0:02:56]} 11. c4 {[%clk 0:02:46]}  d5 {[%clk 0:02:52]} 12. Rc1 {[%clk 0:02:42]}  Qe7 {[%clk 0:02:50]} 13. Qb3 {[%clk 0:02:40]}  dxc4 {[%clk 0:02:48]} 14. Bxc4 {[%clk 0:02:33]}  Rfc8 {[%clk 0:02:46]} 15. Be2 {[%clk 0:02:31]}  Bd5 {[%clk 0:02:38]} 16. Qa4 {[%clk 0:02:30]}  Bc6 {[%clk 0:02:38]} 17. Bb5 {[%clk 0:02:23]}  Bxb5 {[%clk 0:02:22]} 18. Qxb5 {[%clk 0:02:24]}  Nd5 {[%clk 0:02:18]} 19. a3 {[%clk 0:02:13]}  h6 {[%clk 0:02:08]} 20. Qa6 {[%clk 0:02:08]}  Qd8 {[%clk 0:02:07]} 21. Ne4 {[%clk 0:02:03]}  Nc7 {[%clk 0:01:58]} 22. Qa4 {[%clk 0:01:50]}  d5 {[%clk 0:01:47]} 23. Nc3 {[%clk 0:01:48]}  Qe8 {[%clk 0:01:47]} 24. Qb3 {[%clk 0:01:26]}  Qd7 {[%clk 0:01:38]} 25. Rc2 {[%clk 0:01:23]}  Ne8 {[%clk 0:01:38]} 26. Rfc1 {[%clk 0:01:22]}  Nd6 {[%clk 0:01:38]} 27. Nd2 {[%clk 0:01:07]}  Ne7 {[%clk 0:01:36]} 28. Ne2 {[%clk 0:00:58]}  Rxc2 {[%clk 0:01:24]} 29. Rxc2 {[%clk 0:00:59]}  Rc8 {[%clk 0:01:24]} 30. Nf4 {[%clk 0:00:56]}  Nc6 {[%clk 0:01:18]} 31. Nd3 {[%clk 0:00:35]}  Na5 {[%clk 0:01:16]} 32. Rxc8+ {[%clk 0:00:36]}  Qxc8 {[%clk 0:01:17]} 33. Qb4 {[%clk 0:00:26]}  Qc7 {[%clk 0:01:15]} 34. Ne5 {[%clk 0:00:20]}  f6 {[%clk 0:01:05]} 35. Ng6 {[%clk 0:00:21]}  Kf7 {[%clk 0:01:04]} 36. Nh8+ {[%clk 0:00:21]}  Kg8 {[%clk 0:00:45]} 37. Ng6 {[%clk 0:00:22]}  Nab7 {[%clk 0:00:37]} 38. g3 {[%clk 0:00:19]}  a5 {[%clk 0:00:37]} 39. Qb3 {[%clk 0:00:09]}  b5 {[%clk 0:00:26]} 40. Kg2 {[%clk 0:00:10]}  Kf7 {[%clk 0:00:24]} 41. Nh8+ {[%clk 0:00:09]}  Ke8 {[%clk 0:00:25]} 42. Ng6 {[%clk 0:00:09]}  Kf7 {[%clk 0:00:23]} 43. Nh8+ {[%clk 0:00:09]}  Kg8 {[%clk 0:00:23]} 44. Ng6 {[%clk 0:00:10]}  Nd8 {[%clk 0:00:22]} 45. h4 {[%clk 0:00:09]}  N8f7 {[%clk 0:00:18]} 46. h5 {[%clk 0:00:08]}  Ng5 {[%clk 0:00:18]} 47. a4 {[%clk 0:00:07]}  b4 {[%clk 0:00:18]} 48. Qd3 {[%clk 0:00:07]}  Nc4 {[%clk 0:00:18]} 49. b3 {[%clk 0:00:05]}  Nxd2 {[%clk 0:00:19]} 50. Qxd2 {[%clk 0:00:06]}  Ne4 {[%clk 0:00:17]} 51. Qe2 {[%clk 0:00:05]}  Qb7 {[%clk 0:00:16]} 52. f3 {[%clk 0:00:04]}  Nc3 {[%clk 0:00:15]} 53. Qd3 {[%clk 0:00:05]}  Kf7 {[%clk 0:00:12]} 54. Nh8+ {[%clk 0:00:05]}  Ke8 {[%clk 0:00:11]} 55. Ng6 {[%clk 0:00:06]}  Kd7 {[%clk 0:00:11]} 56. Nf8+ {[%clk 0:00:06]}  Kd6 {[%clk 0:00:10]} 57. Qh7 {[%clk 0:00:04]}  Qf7 {[%clk 0:00:09]} 58. Ng6 {[%clk 0:00:05]}  Nd1 {[%clk 0:00:08]} 59. Qh8 {[%clk 0:00:04]}  Nxe3+ {[%clk 0:00:05]} 60. Kh3 {[%clk 0:00:04]}  Nf5 {[%clk 0:00:06]} 61. Qd8+ {[%clk 0:00:03]}  Qd7 {[%clk 0:00:05]} 62. Qxa5 {[%clk 0:00:03]}  Qc7 {[%clk 0:00:02]} 63. Qxb4+ {[%clk 0:00:03]}  Kd7 {[%clk 0:00:03]} 64. a5 {[%clk 0:00:03]}  e5 {[%clk 0:00:03]} 65. Qb5+ {[%clk 0:00:03]}  Kc8 {[%clk 0:00:03]} 66. Qxd5 {[%clk 0:00:03]}  Nxd4 {[%clk 0:00:03]} 67. a6 {[%clk 0:00:02]}  Kb8 {[%clk 0:00:04]} 68. b4 {[%clk 0:00:02]}  Ka7 {[%clk 0:00:04]} 69. Qc5+ {[%clk 0:00:01]}  Qxc5 {[%clk 0:00:04]} 70. bxc5 {[%clk 0:00:02]}  Kxa6 {[%clk 0:00:05]} 71. f4 {[%clk 0:00:03]}  e4 {[%clk 0:00:05]} 72. g4 {[%clk 0:00:03]}  Kb5 {[%clk 0:00:05]} 73. Ne7 {[%clk 0:00:03]}  e3 {[%clk 0:00:05]} 74. Kg3 {[%clk 0:00:03]}  Kxc5 {[%clk 0:00:06]} 75. Ng6 {[%clk 0:00:03]}  Kc4 {[%clk 0:00:06]} 76. g5 {[%clk 0:00:04]}  Kd3 {[%clk 0:00:06]} 77. gxh6 {[%clk 0:00:04]}  e2 {[%clk 0:00:06]} 78. Kf2 {[%clk 0:00:04]}  Kd2 {[%clk 0:00:07]} 79. h7 {[%clk 0:00:05]}  e1=Q+ {[%clk 0:00:07]} 80. Kg2 {[%clk 0:00:05]}  Qe2+ {[%clk 0:00:07]} 81. Kg3 {[%clk 0:00:06]}  Qf3+ {[%clk 0:00:08]} 82. Kh4 {[%clk 0:00:06]}  Nf5# {[%clk 0:00:07]} 0-1


[Site "https://www.chess.com"]

[Event "Titled Tuesday Blitz September 27 Early 2022"]
[White "Papasimakopoulos, Alexandros"]
[Black "Vokhidov, Shamsiddin"]
[WhiteFideId "4244125"]
[BlackFideId "14204223"]
[WhiteElo "2357"]
[BlackElo "2619"]
[Result "0-1"]
[Round "04"]
[TimeControl "180+1"]
[Date "2022.09.27"]
[WhiteClock "0:00:03"]
[BlackClock "0:00:33"]

1. d4 {[%clk 0:03:00]}  Nf6 {[%clk 0:03:00]} 2. c4 {[%clk 0:03:00]}  e6 {[%clk 0:03:00]} 3. Nc3 {[%clk 0:03:00]}  Bb4 {[%clk 0:03:00]} 4. Qc2 {[%clk 0:03:00]}  d5 {[%clk 0:03:00]} 5. cxd5 {[%clk 0:03:01]}  exd5 {[%clk 0:03:01]} 6. Bg5 {[%clk 0:03:01]}  h6 {[%clk 0:03:01]} 7. Bh4 {[%clk 0:03:01]}  Nc6 {[%clk 0:03:02]} 8. e3 {[%clk 0:03:01]}  g5 {[%clk 0:03:02]} 9. Bg3 {[%clk 0:03:01]}  h5 {[%clk 0:03:03]} 10. Bb5 {[%clk 0:03:01]}  h4 {[%clk 0:02:57]} 11. Be5 {[%clk 0:03:00]}  O-O {[%clk 0:02:57]} 12. Bxc6 {[%clk 0:03:00]}  bxc6 {[%clk 0:02:58]} 13. h3 {[%clk 0:03:00]}  Ne4 {[%clk 0:02:53]} 14. Ne2 {[%clk 0:03:00]}  Ba6 {[%clk 0:02:49]} 15. f3 {[%clk 0:02:51]}  Nxc3 {[%clk 0:02:42]} 16. bxc3 {[%clk 0:02:43]}  Bd6 {[%clk 0:02:40]} 17. O-O {[%clk 0:02:34]}  Qe7 {[%clk 0:02:14]} 18. f4 {[%clk 0:02:22]}  f6 {[%clk 0:02:13]} 19. Qg6+ {[%clk 0:02:21]}  Qg7 {[%clk 0:02:13]} 20. Qxg7+ {[%clk 0:02:20]}  Kxg7 {[%clk 0:02:14]} 21. Bxd6 {[%clk 0:02:20]}  cxd6 {[%clk 0:02:14]} 22. Rfe1 {[%clk 0:02:11]}  Rab8 {[%clk 0:02:06]} 23. Kh2 {[%clk 0:02:03]}  Rb2 {[%clk 0:02:03]} 24. Ng1 {[%clk 0:02:03]}  Bd3 {[%clk 0:02:02]} 25. a4 {[%clk 0:01:46]}  Rfb8 {[%clk 0:01:58]} 26. Rad1 {[%clk 0:01:29]}  Be4 {[%clk 0:01:55]} 27. Re2 {[%clk 0:01:27]}  Rxe2 {[%clk 0:01:52]} 28. Nxe2 {[%clk 0:01:28]}  Rb2 {[%clk 0:01:52]} 29. Re1 {[%clk 0:01:27]}  Ra2 {[%clk 0:01:49]} 30. fxg5 {[%clk 0:01:19]}  fxg5 {[%clk 0:01:49]} 31. Kg1 {[%clk 0:01:19]}  Rxa4 {[%clk 0:01:48]} 32. g3 {[%clk 0:01:17]}  Ra2 {[%clk 0:01:41]} 33. gxh4 {[%clk 0:01:14]}  gxh4 {[%clk 0:01:42]} 34. Nf4 {[%clk 0:01:14]}  a5 {[%clk 0:01:38]} 35. Rc1 {[%clk 0:00:59]}  a4 {[%clk 0:01:37]} 36. c4 {[%clk 0:00:59]}  Rc2 {[%clk 0:01:17]} 37. Ra1 {[%clk 0:00:30]}  Rxc4 {[%clk 0:01:14]} 38. Ra3 {[%clk 0:00:29]}  c5 {[%clk 0:01:09]} 39. Kf2 {[%clk 0:00:27]}  Kf6 {[%clk 0:01:04]} 40. Ne2 {[%clk 0:00:20]}  Bc2 {[%clk 0:00:55]} 41. Nc1 {[%clk 0:00:17]}  Bd1 {[%clk 0:00:48]} 42. Nd3 {[%clk 0:00:17]}  Bb3 {[%clk 0:00:45]} 43. Nf4 {[%clk 0:00:18]}  Rc2+ {[%clk 0:00:42]} 44. Kf3 {[%clk 0:00:18]}  Kf5 {[%clk 0:00:41]} 45. Nh5 {[%clk 0:00:14]}  c4 {[%clk 0:00:38]} 46. Ng7+ {[%clk 0:00:13]}  Kf6 {[%clk 0:00:38]} 47. Ne8+ {[%clk 0:00:14]}  Ke7 {[%clk 0:00:37]} 48. Nc7 {[%clk 0:00:14]}  c3 {[%clk 0:00:37]} 49. e4 {[%clk 0:00:13]}  Rc1 {[%clk 0:00:36]} 50. Nxd5+ {[%clk 0:00:04]}  Bxd5 {[%clk 0:00:34]} 51. exd5 {[%clk 0:00:04]}  c2 {[%clk 0:00:34]} 52. Ke2 {[%clk 0:00:03]}  Rh1 {[%clk 0:00:33]} 0-1


[Site "https://www.chess.com"]

[Event "Titled Tuesday Blitz September 27 Early 2022"]
[White "Player, Edmund C"]
[Black "Saucey, Michel"]
[WhiteFideId "406520"]
[BlackFideId "601845"]
[WhiteElo "2092"]
[BlackElo "2253"]
[Result "0-1"]
[Round "04"]
[TimeControl "180+1"]
[Date "2022.09.27"]
[WhiteClock "0:00:01"]
[BlackClock "0:00:01"]

1. e4 {[%clk 0:03:00]}  c5 {[%clk 0:02:59]} 2. Nf3 {[%clk 0:03:00]}  e6 {[%clk 0:02:59]} 3. d4 {[%clk 0:02:54]}  cxd4 {[%clk 0:02:58]} 4. Nxd4 {[%clk 0:02:55]}  Nc6 {[%clk 0:02:57]} 5. Nc3 {[%clk 0:02:49]}  Qc7 {[%clk 0:02:55]} 6. g3 {[%clk 0:02:43]}  a6 {[%clk 0:02:54]} 7. Bg2 {[%clk 0:02:43]}  Nf6 {[%clk 0:02:51]} 8. O-O {[%clk 0:02:40]}  Nxd4 {[%clk 0:02:51]} 9. Qxd4 {[%clk 0:02:39]}  Bc5 {[%clk 0:02:51]} 10. Qd3 {[%clk 0:02:36]}  Ng4 {[%clk 0:02:49]} 11. h3 {[%clk 0:02:21]}  Ne5 {[%clk 0:02:47]} 12. Qe2 {[%clk 0:02:19]}  d6 {[%clk 0:02:41]} 13. Kh2 {[%clk 0:02:18]}  b5 {[%clk 0:02:30]} 14. f4 {[%clk 0:02:17]}  Nc6 {[%clk 0:02:21]} 15. Be3 {[%clk 0:02:13]}  Bxe3 {[%clk 0:01:56]} 16. Qxe3 {[%clk 0:02:14]}  O-O {[%clk 0:01:49]} 17. Rad1 {[%clk 0:02:13]}  Bb7 {[%clk 0:01:48]} 18. Rd2 {[%clk 0:02:12]}  Rad8 {[%clk 0:01:30]} 19. Rfd1 {[%clk 0:02:04]}  Na5 {[%clk 0:01:30]} 20. b3 {[%clk 0:02:03]}  Rc8 {[%clk 0:01:29]} 21. Ne2 {[%clk 0:01:59]}  Rfd8 {[%clk 0:01:27]} 22. Nd4 {[%clk 0:01:55]}  b4 {[%clk 0:01:23]} 23. Nf3 {[%clk 0:01:34]}  h6 {[%clk 0:01:21]} 24. Ne1 {[%clk 0:01:15]}  Nc6 {[%clk 0:01:18]} 25. Nd3 {[%clk 0:01:14]}  a5 {[%clk 0:01:18]} 26. Nb2 {[%clk 0:01:13]}  Ba6 {[%clk 0:01:17]} 27. Bf1 {[%clk 0:00:48]}  Bxf1 {[%clk 0:01:14]} 28. Rxf1 {[%clk 0:00:49]}  Na7 {[%clk 0:01:08]} 29. Nc4 {[%clk 0:00:45]}  Nb5 {[%clk 0:01:07]} 30. f5 {[%clk 0:00:34]}  Nc3 {[%clk 0:01:03]} 31. f6 {[%clk 0:00:32]}  d5 {[%clk 0:00:52]} 32. fxg7 {[%clk 0:00:28]}  Kxg7 {[%clk 0:00:52]} 33. Qd4+ {[%clk 0:00:24]}  Kg8 {[%clk 0:00:49]} 34. exd5 {[%clk 0:00:18]}  Rxd5 {[%clk 0:00:48]} 35. Qg4+ {[%clk 0:00:18]}  Rg5 {[%clk 0:00:46]} 36. Qf4 {[%clk 0:00:16]}  Qxf4 {[%clk 0:00:42]} 37. Rxf4 {[%clk 0:00:17]}  a4 {[%clk 0:00:40]} 38. h4 {[%clk 0:00:17]}  Rd5 {[%clk 0:00:37]} 39. Rdf2 {[%clk 0:00:16]}  f5 {[%clk 0:00:36]} 40. g4 {[%clk 0:00:15]}  Rf8 {[%clk 0:00:17]} 41. bxa4 {[%clk 0:00:12]}  Nxa4 {[%clk 0:00:15]} 42. gxf5 {[%clk 0:00:12]}  Rdxf5 {[%clk 0:00:12]} 43. Rg4+ {[%clk 0:00:10]}  Kh7 {[%clk 0:00:11]} 44. Rxf5 {[%clk 0:00:07]}  exf5 {[%clk 0:00:10]} 45. Rd4 {[%clk 0:00:05]}  Nc3 {[%clk 0:00:10]} 46. Ne5 {[%clk 0:00:04]}  Nxa2 {[%clk 0:00:09]} 47. h5 {[%clk 0:00:04]}  Nc3 {[%clk 0:00:05]} 48. Rxb4 {[%clk 0:00:03]}  f4 {[%clk 0:00:03]} 49. Rb7+ {[%clk 0:00:03]}  Kg8 {[%clk 0:00:02]} 50. Kg2 {[%clk 0:00:02]}  Ne4 {[%clk 0:00:02]} 51. Kf3 {[%clk 0:00:02]}  Ng5+ {[%clk 0:00:02]} 52. Kf2 {[%clk 0:00:02]}  Ne4+ {[%clk 0:00:01]} 53. Kf1 {[%clk 0:00:01]}  f3 {[%clk 0:00:01]} 0-1


[Site "https://www.chess.com"]

[Event "Titled Tuesday Blitz September 27 Early 2022"]
[White "Quirke, Jeffrey"]
[Black "Aguilar, Juan"]
[WhiteFideId "2013029"]
[BlackFideId "3800091"]
[WhiteElo "2144"]
[BlackElo "2330"]
[Result "0-1"]
[Round "04"]
[TimeControl "180+1"]
[Date "2022.09.27"]
[WhiteClock "0:00:06"]
[BlackClock "0:00:19"]

1. c4 {[%clk 0:03:00]}  g6 {[%clk 0:02:59]} 2. g3 {[%clk 0:02:59]}  Bg7 {[%clk 0:02:59]} 3. Bg2 {[%clk 0:03:00]}  d6 {[%clk 0:03:00]} 4. Nf3 {[%clk 0:02:59]}  Nf6 {[%clk 0:03:00]} 5. O-O {[%clk 0:02:58]}  O-O {[%clk 0:03:01]} 6. Nc3 {[%clk 0:02:59]}  Nc6 {[%clk 0:02:59]} 7. d3 {[%clk 0:02:59]}  a6 {[%clk 0:02:55]} 8. b3 {[%clk 0:02:55]}  Rb8 {[%clk 0:02:53]} 9. a4 {[%clk 0:02:50]}  e5 {[%clk 0:02:41]} 10. Bb2 {[%clk 0:02:43]}  Bg4 {[%clk 0:02:34]} 11. h3 {[%clk 0:02:40]}  Bd7 {[%clk 0:02:33]} 12. e4 {[%clk 0:02:38]}  Nd4 {[%clk 0:02:21]} 13. Nxd4 {[%clk 0:02:36]}  exd4 {[%clk 0:02:21]} 14. Ne2 {[%clk 0:02:34]}  c5 {[%clk 0:02:19]} 15. b4 {[%clk 0:02:34]}  b5 {[%clk 0:02:14]} 16. axb5 {[%clk 0:02:32]}  axb5 {[%clk 0:02:14]} 17. cxb5 {[%clk 0:02:00]}  Rxb5 {[%clk 0:02:08]} 18. Ba3 {[%clk 0:01:51]}  Qb6 {[%clk 0:01:48]} 19. bxc5 {[%clk 0:01:48]}  dxc5 {[%clk 0:01:47]} 20. Qc2 {[%clk 0:01:46]}  Rc8 {[%clk 0:01:44]} 21. Rfc1 {[%clk 0:01:36]}  h5 {[%clk 0:01:24]} 22. Nf4 {[%clk 0:01:33]}  Bf8 {[%clk 0:00:53]} 23. e5 {[%clk 0:01:19]}  Ne8 {[%clk 0:00:50]} 24. Nd5 {[%clk 0:01:17]}  Qb8 {[%clk 0:00:47]} 25. f4 {[%clk 0:01:07]}  Bc6 {[%clk 0:00:42]} 26. Qa2 {[%clk 0:00:58]}  Qb7 {[%clk 0:00:36]} 27. Rab1 {[%clk 0:00:43]}  Rd8 {[%clk 0:00:36]} 28. Rxb5 {[%clk 0:00:41]}  Qxb5 {[%clk 0:00:36]} 29. Rb1 {[%clk 0:00:34]}  Qxd3 {[%clk 0:00:33]} 30. Ne7+ {[%clk 0:00:12]}  Bxe7 {[%clk 0:00:33]} 31. Bxc6 {[%clk 0:00:13]}  Qxg3+ {[%clk 0:00:31]} 32. Qg2 {[%clk 0:00:13]}  Qxa3 {[%clk 0:00:29]} 33. f5 {[%clk 0:00:10]}  Qe3+ {[%clk 0:00:29]} 34. Kh1 {[%clk 0:00:10]}  Qg5 {[%clk 0:00:20]} 35. Qf2 {[%clk 0:00:07]}  Qxf5 {[%clk 0:00:19]} 36. Qxf5 {[%clk 0:00:06]}  gxf5 {[%clk 0:00:19]} 0-1


[Site "https://www.chess.com"]

[Event "Titled Tuesday Blitz September 27 Early 2022"]
[White "Ravi, Thandalam Shanmugam"]
[Black "Forgacs, Attila Jr."]
[WhiteFideId "5000238"]
[BlackFideId "773654"]
[WhiteElo "2063"]
[BlackElo "2062"]
[Result "1/2-1/2"]
[Round "04"]
[TimeControl "180+1"]
[Date "2022.09.27"]
[WhiteClock "0:02:16"]
[BlackClock "0:00:57"]

1. e4 {[%clk 0:03:00]}  e5 {[%clk 0:03:00]} 2. Nf3 {[%clk 0:03:00]}  Nc6 {[%clk 0:03:00]} 3. Bb5 {[%clk 0:03:01]}  a6 {[%clk 0:03:00]} 4. Ba4 {[%clk 0:03:01]}  Nf6 {[%clk 0:03:01]} 5. d3 {[%clk 0:03:01]}  d6 {[%clk 0:03:00]} 6. Nc3 {[%clk 0:02:59]}  g6 {[%clk 0:03:00]} 7. O-O {[%clk 0:02:58]}  Bg7 {[%clk 0:03:00]} 8. Nd5 {[%clk 0:02:57]}  O-O {[%clk 0:02:57]} 9. Bg5 {[%clk 0:02:57]}  Be6 {[%clk 0:02:46]} 10. c4 {[%clk 0:02:57]}  Bxd5 {[%clk 0:02:27]} 11. cxd5 {[%clk 0:02:56]}  Ne7 {[%clk 0:02:26]} 12. Qd2 {[%clk 0:02:54]}  Nd7 {[%clk 0:02:23]} 13. Bxd7 {[%clk 0:02:50]}  Qxd7 {[%clk 0:02:23]} 14. Rac1 {[%clk 0:02:51]}  f5 {[%clk 0:02:20]} 15. Rc4 {[%clk 0:02:49]}  f4 {[%clk 0:02:15]} 16. Bxe7 {[%clk 0:02:49]}  Qxe7 {[%clk 0:02:14]} 17. Rfc1 {[%clk 0:02:50]}  Rac8 {[%clk 0:02:15]} 18. Ng5 {[%clk 0:02:50]}  Qxg5 {[%clk 0:02:11]} 19. Rxc7 {[%clk 0:02:49]}  Rxc7 {[%clk 0:02:07]} 20. Rxc7 {[%clk 0:02:50]}  Rf7 {[%clk 0:01:59]} 21. Rc8+ {[%clk 0:02:50]}  Bf8 {[%clk 0:01:59]} 22. f3 {[%clk 0:02:49]}  Qh4 {[%clk 0:01:52]} 23. Qb4 {[%clk 0:02:48]}  g5 {[%clk 0:01:48]} 24. h3 {[%clk 0:02:43]}  h5 {[%clk 0:01:47]} 25. Qxd6 {[%clk 0:02:42]}  g4 {[%clk 0:01:12]} 26. Rxf8+ {[%clk 0:02:19]}  Rxf8 {[%clk 0:00:55]} 27. Qg6+ {[%clk 0:02:13]}  Kh8 {[%clk 0:00:55]} 28. Qh6+ {[%clk 0:02:14]}  Kg8 {[%clk 0:00:56]} 29. Qg6+ {[%clk 0:02:14]}  Kh8 {[%clk 0:00:57]} 30. Qh6+ {[%clk 0:02:15]}  Kg8 {[%clk 0:00:57]} 31. Qg6+ {[%clk 0:02:16]} 1/2-1/2


[Site "https://www.chess.com"]

[Event "Titled Tuesday Blitz September 27 Early 2022"]
[White "Rom, Jasper"]
[Black "Zaichenko, Daria"]
[WhiteFideId "2023733"]
[BlackFideId "4197453"]
[WhiteElo "2233"]
[BlackElo "2039"]
[Result "0-1"]
[Round "04"]
[TimeControl "180+1"]
[Date "2022.09.27"]
[WhiteClock "0:00:02"]
[BlackClock "0:00:13"]

1. e4 {[%clk 0:03:00]}  c5 {[%clk 0:02:56]} 2. Nc3 {[%clk 0:03:00]}  Nc6 {[%clk 0:02:53]} 3. f4 {[%clk 0:03:00]}  e6 {[%clk 0:02:46]} 4. Nf3 {[%clk 0:03:00]}  d5 {[%clk 0:02:46]} 5. Bb5 {[%clk 0:02:59]}  d4 {[%clk 0:02:45]} 6. Bxc6+ {[%clk 0:02:58]}  bxc6 {[%clk 0:02:44]} 7. Nb1 {[%clk 0:02:58]}  Ba6 {[%clk 0:02:31]} 8. d3 {[%clk 0:02:55]}  Nf6 {[%clk 0:02:31]} 9. b3 {[%clk 0:02:54]}  Be7 {[%clk 0:02:30]} 10. O-O {[%clk 0:02:53]}  O-O {[%clk 0:02:29]} 11. Qe1 {[%clk 0:02:47]}  Qc7 {[%clk 0:02:13]} 12. a4 {[%clk 0:02:44]}  Rab8 {[%clk 0:02:03]} 13. Na3 {[%clk 0:02:23]}  Nd7 {[%clk 0:02:01]} 14. Bd2 {[%clk 0:02:19]}  e5 {[%clk 0:02:00]} 15. f5 {[%clk 0:02:14]}  c4 {[%clk 0:01:53]} 16. dxc4 {[%clk 0:02:02]}  Qd6 {[%clk 0:01:39]} 17. Qe2 {[%clk 0:01:56]}  Nc5 {[%clk 0:01:35]} 18. Ne1 {[%clk 0:01:55]}  Rbd8 {[%clk 0:01:32]} 19. Nd3 {[%clk 0:01:54]}  Bb7 {[%clk 0:01:26]} 20. Bb4 {[%clk 0:01:49]}  Qh6 {[%clk 0:01:13]} 21. Bxc5 {[%clk 0:01:41]}  Rfe8 {[%clk 0:01:12]} 22. Bxe7 {[%clk 0:01:38]}  Rxe7 {[%clk 0:01:12]} 23. Nc5 {[%clk 0:01:22]}  Bc8 {[%clk 0:01:10]} 24. Nb1 {[%clk 0:01:10]}  a5 {[%clk 0:01:09]} 25. Nd2 {[%clk 0:01:08]}  f6 {[%clk 0:01:09]} 26. Rf3 {[%clk 0:01:03]}  g5 {[%clk 0:01:09]} 27. fxg6 {[%clk 0:00:51]}  Bg4 {[%clk 0:00:58]} 28. gxh7+ {[%clk 0:00:44]}  Kxh7 {[%clk 0:00:53]} 29. Raf1 {[%clk 0:00:32]}  Rg7 {[%clk 0:00:40]} 30. Qf2 {[%clk 0:00:12]}  Bxf3 {[%clk 0:00:37]} 31. Nxf3 {[%clk 0:00:12]}  Rdg8 {[%clk 0:00:32]} 32. g3 {[%clk 0:00:12]}  Qh3 {[%clk 0:00:29]} 33. Qg2 {[%clk 0:00:04]}  Rxg3 {[%clk 0:00:26]} 34. hxg3 {[%clk 0:00:03]}  Rxg3 {[%clk 0:00:26]} 35. Qxg3 {[%clk 0:00:03]}  Qxg3+ {[%clk 0:00:27]} 36. Kh1 {[%clk 0:00:03]}  Qh3+ {[%clk 0:00:23]} 37. Nh2 {[%clk 0:00:03]}  Kg7 {[%clk 0:00:15]} 38. Rf2 {[%clk 0:00:02]}  Kf7 {[%clk 0:00:14]} 39. Nd3 {[%clk 0:00:02]}  Qe3 {[%clk 0:00:13]} 0-1


[Site "https://www.chess.com"]

[Event "Titled Tuesday Blitz September 27 Early 2022"]
[White "Rostomyan, Mikayel"]
[Black "Ravi, Teja S."]
[WhiteFideId "13313754"]
[BlackFideId "5017220"]
[WhiteElo "1426"]
[BlackElo "2432"]
[Result "0-1"]
[Round "04"]
[TimeControl "180+1"]
[Date "2022.09.27"]
[WhiteClock "0:00:04"]
[BlackClock "0:00:30"]

1. d4 {[%clk 0:03:00]}  d5 {[%clk 0:02:58]} 2. c4 {[%clk 0:02:59]}  c6 {[%clk 0:02:58]} 3. Nf3 {[%clk 0:02:58]}  Nf6 {[%clk 0:02:58]} 4. e3 {[%clk 0:02:54]}  Bg4 {[%clk 0:02:55]} 5. Nc3 {[%clk 0:02:48]}  e6 {[%clk 0:02:55]} 6. b3 {[%clk 0:02:43]}  Bb4 {[%clk 0:02:53]} 7. Bd2 {[%clk 0:02:44]}  O-O {[%clk 0:02:49]} 8. Be2 {[%clk 0:02:39]}  Nbd7 {[%clk 0:02:49]} 9. O-O {[%clk 0:02:38]}  Qe7 {[%clk 0:02:49]} 10. a3 {[%clk 0:02:36]}  Bxa3 {[%clk 0:02:45]} 11. c5 {[%clk 0:01:50]}  Bb2 {[%clk 0:02:38]} 12. Ra2 {[%clk 0:01:48]}  Bxc3 {[%clk 0:02:38]} 13. Bxc3 {[%clk 0:01:49]}  Ne4 {[%clk 0:02:36]} 14. Be1 {[%clk 0:01:49]}  a6 {[%clk 0:02:33]} 15. h3 {[%clk 0:01:49]}  Bh5 {[%clk 0:02:30]} 16. Ba5 {[%clk 0:01:24]}  Rac8 {[%clk 0:02:16]} 17. Nd2 {[%clk 0:01:17]}  Bxe2 {[%clk 0:02:12]} 18. Qxe2 {[%clk 0:01:18]}  Ndf6 {[%clk 0:02:10]} 19. Nb1 {[%clk 0:01:12]}  e5 {[%clk 0:02:08]} 20. Be1 {[%clk 0:01:01]}  exd4 {[%clk 0:01:50]} 21. exd4 {[%clk 0:01:02]}  Qc7 {[%clk 0:01:50]} 22. Qf3 {[%clk 0:00:49]}  Rfe8 {[%clk 0:01:48]} 23. h4 {[%clk 0:00:46]}  h5 {[%clk 0:01:47]} 24. Na3 {[%clk 0:00:43]}  Ng4 {[%clk 0:01:46]} 25. g3 {[%clk 0:00:41]}  Re6 {[%clk 0:01:46]} 26. Nc2 {[%clk 0:00:37]}  Rf6 {[%clk 0:01:45]} 27. Qg2 {[%clk 0:00:37]}  Re8 {[%clk 0:01:42]} 28. f3 {[%clk 0:00:34]}  Rg6 {[%clk 0:01:18]} 29. fxg4 {[%clk 0:00:22]}  Rxg4 {[%clk 0:01:18]} 30. Ne3 {[%clk 0:00:23]}  Rg6 {[%clk 0:01:10]} 31. Nf5 {[%clk 0:00:23]}  Ree6 {[%clk 0:01:04]} 32. Re2 {[%clk 0:00:17]}  b6 {[%clk 0:00:54]} 33. Nd6 {[%clk 0:00:17]}  Nxd6 {[%clk 0:00:50]} 34. cxd6 {[%clk 0:00:18]}  Qxd6 {[%clk 0:00:50]} 35. Rxe6 {[%clk 0:00:17]}  Qxe6 {[%clk 0:00:50]} 36. Bd2 {[%clk 0:00:14]}  c5 {[%clk 0:00:47]} 37. dxc5 {[%clk 0:00:13]}  bxc5 {[%clk 0:00:47]} 38. Bf4 {[%clk 0:00:14]}  d4 {[%clk 0:00:45]} 39. Qa8+ {[%clk 0:00:13]}  Kh7 {[%clk 0:00:46]} 40. Qf3 {[%clk 0:00:14]}  Rg4 {[%clk 0:00:42]} 41. Kg2 {[%clk 0:00:08]}  a5 {[%clk 0:00:39]} 42. Rf2 {[%clk 0:00:08]}  a4 {[%clk 0:00:38]} 43. bxa4 {[%clk 0:00:08]}  c4 {[%clk 0:00:39]} 44. Re2 {[%clk 0:00:09]}  Qg6 {[%clk 0:00:38]} 45. Re4 {[%clk 0:00:05]}  Rxh4 {[%clk 0:00:30]} 46. Rxd4 {[%clk 0:00:06]}  Qc2+ {[%clk 0:00:31]} 47. Qf2 {[%clk 0:00:04]}  Rh2+ {[%clk 0:00:30]} 0-1


[Site "https://www.chess.com"]

[Event "Titled Tuesday Blitz September 27 Early 2022"]
[White "Rostovtsev, Dmitry"]
[Black "Gevorgyan, David Sh."]
[WhiteFideId "34278320"]
[BlackFideId "13303244"]
[WhiteElo "2313"]
[BlackElo "2235"]
[Result "1-0"]
[Round "04"]
[TimeControl "180+1"]
[Date "2022.09.27"]
[WhiteClock "0:02:10"]
[BlackClock "0:00:44"]

1. e4 {[%clk 0:03:00]}  g6 {[%clk 0:02:57]} 2. d4 {[%clk 0:03:00]}  Bg7 {[%clk 0:02:57]} 3. Nc3 {[%clk 0:03:01]}  d6 {[%clk 0:02:57]} 4. f4 {[%clk 0:03:01]}  a6 {[%clk 0:02:57]} 5. Nf3 {[%clk 0:03:01]}  b5 {[%clk 0:02:57]} 6. Bd3 {[%clk 0:03:02]}  Bb7 {[%clk 0:02:57]} 7. e5 {[%clk 0:03:03]}  e6 {[%clk 0:02:57]} 8. Be4 {[%clk 0:03:03]}  Bxe4 {[%clk 0:02:57]} 9. Nxe4 {[%clk 0:03:03]}  Ne7 {[%clk 0:02:58]} 10. a4 {[%clk 0:03:02]}  bxa4 {[%clk 0:02:52]} 11. Rxa4 {[%clk 0:03:01]}  Nf5 {[%clk 0:02:53]} 12. c3 {[%clk 0:03:00]}  Nd7 {[%clk 0:02:51]} 13. O-O {[%clk 0:02:59]}  Nb6 {[%clk 0:02:49]} 14. Ra1 {[%clk 0:02:59]}  Nd5 {[%clk 0:02:33]} 15. Qe1 {[%clk 0:02:50]}  h5 {[%clk 0:02:27]} 16. g3 {[%clk 0:02:50]}  Qd7 {[%clk 0:02:23]} 17. h3 {[%clk 0:02:46]}  Qc6 {[%clk 0:02:12]} 18. g4 {[%clk 0:02:45]}  hxg4 {[%clk 0:02:12]} 19. hxg4 {[%clk 0:02:46]}  Nfe7 {[%clk 0:01:32]} 20. Kg2 {[%clk 0:02:25]}  Kd7 {[%clk 0:01:28]} 21. b3 {[%clk 0:02:20]}  f5 {[%clk 0:01:22]} 22. exf6 {[%clk 0:02:17]}  Nxf6 {[%clk 0:01:21]} 23. Neg5 {[%clk 0:02:11]}  Rae8 {[%clk 0:00:44]} 24. Qxe6+ {[%clk 0:02:09]}  Kd8 {[%clk 0:00:44]} 25. Nf7# {[%clk 0:02:10]} 1-0


[Site "https://www.chess.com"]